bitfinex-derivatives/quotes_SOLF0:USTF0_20251023
["timestamp","ask_amount","ask_price","bid_price","bid_amount"]
[1761194039242,2.89,183.53,183.5,2.78]
[1761194039444,4.07545121,183.52,183.5,2.78]
[1761194039644,2.89,183.53,183.5,2.78]
[1761194039846,4.07553094,183.52,183.5,2.78]
[1761194040048,2.89,183.53,183.5,2.78]
[1761194040247,6.85545121,183.52,183.5,2.78]
[1761194040450,6.85545121,183.52,183.4,26.5331444]
[1761194040451,2.78,183.5,183.47,4.11729919]
[1761194040652,6.85632016,183.5,183.47,4.11729919]
[1761194040851,2.78,183.5,183.48,2.8]
[1761194041859,2.78,183.48,183.45,2.8]
[1761194042063,4.07320828,183.47,183.45,2.8]
[1761194042357,2.78,183.48,183.45,2.8]
[1761194042660,4.07248842,183.47,183.45,2.8]
[1761194042864,2.78,183.47,183.45,2.8]
[1761194043057,2.78,183.49,183.45,2.8]
[1761194043258,2.78,183.47,183.45,2.8]
[1761194043459,6.85248842,183.47,183.45,2.8]
[1761194043653,2.78,183.47,183.43,2.8]
[1761194044762,6.85109217,183.47,183.43,2.8]
[1761194044964,2.78,183.47,183.43,2.8]
[1761194045562,6.85109217,183.47,183.43,2.8]
[1761194045869,2.78,183.45,183.43,2.8]
[1761194046070,2.78,183.45,183.42,2.8]
[1761194046467,2.78,183.45,183.31,45.12]
[1761194046468,2.78,183.45,183.38,2.8]
[1761194046669,2.78,183.43,183.39,2.8]
[1761194046870,6.8502742,183.43,183.39,2.8]
[1761194047075,2.78,183.43,183.39,2.8]
[1761194047771,2.78,183.42,183.39,2.8]
[1761194048164,2.78,183.45,183.39,2.8]
[1761194048374,4.06693464,183.44,183.39,2.8]
[1761194048675,2.78,183.43,183.39,2.8]
[1761194050661,6.84334037,183.46,183.4,1.31729919]
[1761194050861,4.06334037,183.45,183.41,2.8]
[1761194051172,2.78,183.46,183.41,2.8]
[1761194051567,6.84334037,183.46,183.41,2.8]
[1761194051770,2.78,183.46,183.42,1.31729919]
[1761194051967,2.78,183.46,183.43,2.8]
[1761194052769,6.84113559,183.48,183.43,2.8]
[1761194052964,7.86445384,183.56,183.47,2.8]
[1761194053171,6.83945063,183.55,183.49,4.11729919]
[1761194053372,6.83945063,183.54,183.5,2.8]
[1761194053572,4.05945063,183.53,183.5,2.8]
[1761194053875,2.78,183.54,183.5,2.8]
[1761194054268,2.78,183.54,183.51,4.11729919]
[1761194054667,2.78,183.54,183.51,1.31729919]
[1761194055075,6.83817518,183.56,183.52,2.8]
[1761194055271,4.05817518,183.55,183.52,2.8]
[1761194055467,2.78,183.55,183.52,2.8]
[1761194055863,2.78,183.54,183.51,4.11729919]
[1761194056877,2.78,183.57,183.51,4.11729919]
[1761194057081,4.05795581,183.56,183.54,2.8]
[1761194057578,2.78,183.57,183.54,2.8]
[1761194058072,6.83795581,183.57,183.54,2.8]
[1761194058268,4.05795581,183.56,183.54,2.8]
[1761194058978,2.78,183.57,183.54,2.8]
[1761194059280,7.85937932,183.6,183.54,2.8]
[1761194059476,6.83755474,183.59,183.54,2.8]
[1761194059675,4.05755474,183.58,183.55,1.31729919]
[1761194059880,2.78,183.59,183.56,2.8]
[1761194060566,6.83755474,183.59,183.56,2.8]
[1761194060770,4.05755474,183.58,183.56,2.8]
[1761194060969,2.78,183.59,183.56,2.8]
[1761194061571,2.78,183.59,183.55,1.31729919]
[1761194061780,2.78,183.58,183.55,1.31729919]
[1761194061977,7.74394695,183.65,183.58,2.8]
[1761194061978,2.78,183.65,183.58,2.8]
[1761194062177,2.78,183.65,183.61,2.8]
[1761194066475,2.86,183.68,183.64,1.31729919]
[1761194066789,2.86,183.72,183.66,1.31729919]
[1761194067679,2.86,183.72,183.68,4.10729919]
[1761194068486,2.86,183.72,183.68,2.79]
[1761194069890,4.05729919,183.75,183.69,2.93]
[1761194070088,2.74,183.75,183.69,2.93]
[1761194071492,2.74,183.72,183.65,4.24729919]
[1761194071695,2.74,183.72,183.65,1.31729919]
[1761194071886,2.74,183.72,183.66,2.93]
[1761194073792,1.31729919,183.73,183.66,2.93]
[1761194074486,1.31729919,183.73,183.61,4.9009]
[1761194074487,4.05729919,183.75,183.68,2.93]
[1761194077697,1.31729919,183.73,183.68,2.93]
[1761194078798,45.2,183.77,183.68,2.93]
[1761194079104,1.31729919,183.75,183.68,2.93]
[1761194079595,45.2,183.77,183.68,2.93]
[1761194079801,1.31729919,183.76,183.68,2.93]
[1761194080402,1.31729919,183.74,183.68,2.93]
[1761194080793,1.31729919,183.75,183.7,2.93]
[1761194081296,4.05729919,183.75,183.7,2.93]
[1761194084101,1.31729919,183.75,183.7,2.93]
[1761194084995,4.05729919,183.75,183.7,2.93]
[1761194085196,2.74,183.74,183.7,2.93]
[1761194085393,4.05729919,183.73,183.7,2.93]
[1761194085802,1.31729919,183.73,183.7,2.93]
[1761194087605,1.31729919,183.75,183.7,2.93]
[1761194090601,2.74,183.7,183.51,16.35]
[1761194090806,2.0552096,183.66,183.58,2.93]
[1761194091403,2.0552096,183.69,183.58,2.93]
[1761194092107,2.0552096,183.69,183.59,2.93]
[1761194092606,2.0552096,183.69,183.6,4.9012]
[1761194092910,2.0552096,183.69,183.61,2.93]
[1761194094906,2.0552096,183.68,183.61,2.93]
[1761194095807,2.0552096,183.68,183.61,7.8307]
[1761194096009,2.0552096,183.68,183.62,2.93]
[1761194098707,2.0552096,183.71,183.64,2.76]
[1761194100201,2.0552096,183.71,183.65,2.76]
[1761194100806,2.0552096,183.72,183.65,2.76]
[1761194101007,4.8552096,183.72,183.65,2.76]
[1761194103911,8.88766481,183.72,183.65,2.76]
[1761194104111,4.8552096,183.72,183.65,2.76]
[1761194104714,4.0398748,183.71,183.65,2.76]
[1761194105213,4.04267835,183.71,183.65,2.76]
[1761194105813,4.8552096,183.72,183.65,2.76]
[1761194106018,4.04294138,183.71,183.65,2.76]
[1761194106214,4.8552096,183.72,183.65,2.76]
[1761194106415,4.04703284,183.71,183.65,2.76]
[1761194106720,4.8552096,183.72,183.65,2.76]
[1761194106920,4.04711202,183.71,183.65,2.76]
[1761194107120,4.8552096,183.72,183.65,2.76]
[1761194107316,4.04711202,183.71,183.65,2.76]
[1761194107521,4.8552096,183.72,183.65,2.76]
[1761194107713,4.04807378,183.71,183.65,2.76]
[1761194107914,4.8552096,183.72,183.65,2.76]
[1761194108113,4.04807378,183.71,183.65,2.76]
[1761194108314,4.8552096,183.72,183.65,2.76]
[1761194108515,4.04932165,183.71,183.65,2.76]
[1761194108710,4.8552096,183.72,183.65,2.76]
[1761194108910,4.04933777,183.71,183.65,2.76]
[1761194109115,4.8552096,183.72,183.65,2.76]
[1761194110016,4.05112056,183.71,183.65,2.76]
[1761194110213,4.8552096,183.72,183.65,2.76]
[1761194110423,4.05280213,183.71,183.65,2.76]
[1761194111323,4.05485446,183.71,183.65,2.76]
[1761194112123,4.8552096,183.72,183.65,2.76]
[1761194112515,2.8,183.7,183.65,2.76]
[1761194113425,2.8,183.69,183.65,2.76]
[1761194116528,2.8,183.69,183.62,2.76]
[1761194116830,6.8565589,183.69,183.62,2.76]
[1761194117030,2.8,183.69,183.62,2.76]
[1761194117625,2.8,183.68,183.62,2.76]
[1761194121431,2.8,183.68,183.63,2.76]
[1761194122330,2.8,183.7,183.63,2.76]
[1761194122930,2.8,183.73,183.64,2.76]
[1761194123331,4.05129509,183.73,183.64,2.76]
[1761194123636,2.8,183.72,183.64,2.76]
[1761194124037,2.8,183.72,183.65,2.72]
[1761194128543,2.79,183.71,183.65,2.72]
[1761194128742,2.79,183.7,183.65,2.72]
[1761194129141,2.79,183.7,183.62,7.6406]
[1761194129436,2.79,183.7,183.63,2.74]
[1761194129839,2.79,183.69,183.63,2.74]
[1761194130545,6.84363252,183.69,183.63,2.74]
[1761194130840,2.79,183.69,183.63,2.74]
[1761194135549,2.79,183.68,183.63,2.74]
[1761194136140,2.79,183.68,183.6,4.9011]
[1761194136346,2.79,183.67,183.6,7.6411]
[1761194136846,2.79,183.67,183.6,2.74]
[1761194137046,2.79,183.66,183.6,2.74]
[1761194138155,4.02274107,183.68,183.6,2.74]
[1761194138354,6.81274107,183.68,183.6,2.74]
[1761194139047,6.81274107,183.68,183.61,2.74]
[1761194139656,6.81274107,183.68,183.62,2.74]
[1761194139854,2.79,183.68,183.62,2.74]
[1761194140157,2.79,183.68,183.63,2.0552096]
[1761194140354,4.02259396,183.7,183.64,2.74]
[1761194140649,2.79,183.71,183.67,2.74]
[1761194144344,2.79,183.71,183.65,2.74]
[1761194145059,2.79,183.7,183.65,2.74]
[1761194149463,4.01445866,183.72,183.65,2.74]
[1761194149652,6.80445866,183.72,183.65,2.74]
[1761194149855,2.79,183.72,183.65,2.74]
[1761194150255,2.79,183.71,183.65,2.74]
[1761194150460,4.01429799,183.71,183.65,2.74]
[1761194150658,2.79,183.7,183.65,2.74]
[1761194152665,4.10453421,183.7,183.65,2.74]
[1761194152862,2.79,183.69,183.65,2.74]
[1761194163073,2.79,183.69,183.62,2.87]
[1761194163271,2.9,183.68,183.62,2.87]
[1761194166869,4.21453421,183.68,183.62,2.87]
[1761194167176,2.9,183.67,183.62,2.87]
[1761194169181,2.9,183.65,183.56,10.1831444]
[1761194169388,4.21453421,183.65,183.57,2.87]
[1761194169679,2.9,183.66,183.59,2.87]
[1761194169871,6.9162632,183.65,183.59,2.87]
[1761194170071,2.9,183.65,183.59,2.87]
[1761194170272,4.01585279,183.64,183.59,2.87]
[1761194170467,2.9,183.63,183.59,2.87]
[1761194171179,6.91504641,183.66,183.6,1.31453421]
[1761194171479,2.9,183.66,183.61,2.87]
[1761194172074,2.9,183.65,183.61,2.87]
[1761194172870,2.9,183.64,183.61,2.87]
[1761194173070,2.9,183.64,183.58,4.18453421]
[1761194173772,2.9,183.63,183.58,4.18453421]
[1761194173968,2.9,183.63,183.59,2.87]
[1761194174678,2.9,183.66,183.61,2.87]
[1761194174878,6.91111416,183.66,183.61,2.87]
[1761194175175,2.9,183.65,183.61,2.87]
[1761194175386,2.9,183.65,183.62,4.18453421]
[1761194175572,2.9,183.69,183.64,4.18453421]
[1761194175980,2.9,183.68,183.64,4.18453421]
[1761194177485,2.9,183.68,183.62,1.31453421]
[1761194177683,2.9,183.68,183.6,4.18453421]
[1761194177981,2.9,183.67,183.6,4.18453421]
[1761194178385,2.9,183.66,183.6,4.18453421]
[1761194179078,2.9,183.66,183.6,2.87]
[1761194179279,2.9,183.66,183.6,4.18453421]
[1761194180169,2.9,183.66,183.63,1.31453421]
[1761194181180,2.9,183.66,183.65,1.31453421]
[1761194181382,2.9,183.66,183.62,1.31453421]
[1761194181778,2.9,183.66,183.62,4.18453421]
[1761194184186,2.9,183.66,183.63,2.86]
[1761194184380,2.9,183.66,183.62,1.31453421]
[1761194184579,2.9,183.66,183.62,4.17453421]
[1761194187589,2.9,183.66,183.6,1.31453421]
[1761194195595,2.93,183.65,183.6,4.22453421]
[1761194202402,2.93,183.65,183.61,2.91]
[1761194205200,2.93,183.65,183.6,4.22453421]
[1761194205506,2.93,183.64,183.6,4.22453421]
[1761194205706,2.93,183.64,183.6,2.91]
[1761194207511,2.93,183.64,183.58,1.31453421]
[1761194207697,1.31453421,183.67,183.57,2.91]
[1761194207698,4.0366332,183.63,183.57,2.91]
[1761194207896,2.93,183.62,183.57,2.91]
[1761194208497,2.93,183.61,183.57,2.91]
[1761194209807,4.03746919,183.6,183.55,2.91]
[1761194210005,2.93,183.59,183.55,2.91]
[1761194210207,2.93,183.58,183.55,2.91]
[1761194219525,2.93,183.58,183.53,2.84]
[1761194219724,2.93,183.58,183.5,2.84]
[1761194221928,2.93,183.58,183.5,4.8961653]
[1761194222127,2.93,183.58,183.51,2.84]
[1761194224531,2.74,183.66,183.55,2.0561653]
[1761194224831,2.74,183.65,183.59,2.84]
[1761194225430,6.76917717,183.65,183.59,2.84]
[1761194225631,2.74,183.65,183.59,2.84]
[1761194226422,6.76888511,183.65,183.59,2.84]
[1761194226622,2.74,183.65,183.59,2.84]
[1761194228029,4.02888983,183.67,183.59,2.84]
[1761194228236,4.02888983,183.68,183.59,2.84]
[1761194228534,2.74,183.68,183.59,2.84]
[1761194229634,6.76854394,183.68,183.59,2.84]
[1761194229835,2.74,183.68,183.59,2.84]
[1761194230135,11.32337318,183.71,183.62,2.84]
[1761194230329,4.0286611,183.7,183.62,2.84]
[1761194230529,2.74,183.71,183.62,2.84]
[1761194231630,2.74,183.71,183.65,2.84]
[1761194232027,2.74,183.71,183.6,2.0561653]
[1761194232233,2.74,183.69,183.61,2.84]
[1761194232433,2.74,183.68,183.61,2.84]
[1761194232736,2.74,183.67,183.61,2.84]
[1761194234342,4.7961653,183.67,183.57,2.84]
[1761194234640,2.74,183.66,183.57,2.84]
[1761194235430,11.32201773,183.69,183.59,2.84]
[1761194235635,2.74,183.69,183.59,2.84]
[1761194236840,2.74,183.68,183.59,2.84]
[1761194237840,2.74,183.67,183.59,2.84]
[1761194240137,4.7961653,183.7,183.6,2.84]
[1761194240634,2.74,183.69,183.6,2.84]
[1761194244136,47.1761653,183.76,183.59,6.9576653]
[1761194244137,2.74,183.72,183.61,2.84]
[1761194244450,2.74,183.72,183.63,2.84]
[1761194248838,7.29491655,183.75,183.64,2.81]
[1761194249038,2.75,183.75,183.65,2.0561653]
[1761194249242,2.75,183.78,183.66,2.81]
[1761194250950,2.75,183.78,183.69,2.81]
[1761194251640,2.75,183.78,183.66,4.8996]
[1761194251641,2.75,183.72,183.65,2.81]
[1761194260649,2.89,183.71,183.62,2.87]
[1761194264550,4.9461653,183.74,183.65,2.87]
[1761194264748,2.89,183.74,183.65,2.87]
[1761194267352,8.60835599,183.76,183.66,2.87]
[1761194267558,2.89,183.76,183.66,2.87]
[1761194268151,2.89,183.76,183.69,2.87]
[1761194269561,2.89,183.78,183.7,2.87]
[1761194273356,4.00318423,183.8,183.7,2.87]
[1761194273663,2.89,183.8,183.7,2.87]
[1761194274759,2.89,183.8,183.73,2.87]
[1761194274960,2.89,183.78,183.73,2.87]
[1761194275157,2.89,183.78,183.69,4.8986]
[1761194275158,1.31311715,183.77,183.7,2.87]
[1761194275358,2.89,183.76,183.7,2.87]
[1761194276057,2.89,183.74,183.7,2.87]
[1761194276954,2.89,183.74,183.67,9.08241715]
[1761194277158,2.89,183.74,183.68,2.87]
[1761194277559,4.20311715,183.77,183.7,2.87]
[1761194278267,2.89,183.76,183.7,2.87]
[1761194279162,2.71,183.74,183.7,2.87]
[1761194279757,2.71,183.74,183.67,2.76]
[1761194280063,4.02311715,183.73,183.67,2.76]
[1761194282161,1.31311715,183.75,183.68,2.76]
[1761194283071,4.02311715,183.75,183.68,2.76]
[1761194285170,2.71,183.74,183.68,2.76]
[1761194285870,2.71,183.72,183.68,2.76]
[1761194286576,4.02311715,183.71,183.64,2.76]
[1761194286976,1.31311715,183.69,183.64,2.76]
[1761194287171,2.71,183.68,183.64,2.76]
[1761194287468,1.31311715,183.71,183.64,2.76]
[1761194287673,1.31311715,183.71,183.65,2.76]
[1761194287874,4.02311715,183.73,183.65,2.76]
[1761194288673,8.03084602,183.73,183.65,2.76]
[1761194288877,4.02311715,183.73,183.65,2.76]
[1761194292068,2.71,183.68,183.65,2.76]
[1761194292674,2.71,183.68,183.62,7.6606]
[1761194293081,2.71,183.68,183.63,2.76]
[1761194296581,2.71,183.66,183.59,2.76]
[1761194300076,2.71,183.66,183.59,4.9013]
[1761194300276,2.71,183.66,183.6,2.76]
[1761194306989,2.71,183.66,183.61,2.93]
[1761194308088,3.99311715,183.69,183.61,2.93]
[1761194308292,2.68,183.68,183.62,4.24311715]
[1761194309285,2.68,183.68,183.63,2.68]
[1761194315489,4.13311715,183.7,183.63,2.68]
[1761194315687,2.82,183.69,183.63,2.68]
[1761194319798,4.13311715,183.72,183.65,2.68]
[1761194319998,6.82998872,183.72,183.67,2.68]
[1761194320191,2.82,183.72,183.67,2.68]
[1761194321285,2.82,183.71,183.67,2.68]
[1761194328606,2.82,183.73,183.67,2.68]
[1761194329703,2.82,183.71,183.67,2.68]
[1761194329908,2.82,183.71,183.64,8.89321715]
[1761194330109,2.82,183.69,183.64,2.68]
[1761194331201,1.31311715,183.7,183.64,2.68]
[1761194331406,5.32978138,183.7,183.64,2.68]
[1761194331810,6.83666423,183.71,183.64,2.68]
[1761194332009,2.82,183.71,183.64,2.68]
[1761194333011,6.83774967,183.71,183.64,2.68]
[1761194334319,2.82,183.71,183.64,2.68]
[1761194334506,6.83793322,183.71,183.64,2.68]
[1761194334911,2.82,183.71,183.64,2.68]
[1761194335214,6.83793322,183.71,183.64,2.68]
[1761194335514,2.82,183.71,183.64,2.68]
[1761194336014,6.8379899,183.71,183.64,2.68]
[1761194336321,2.82,183.7,183.64,2.68]
[1761194340318,2.69,183.69,183.64,2.68]
[1761194345221,2.69,183.68,183.64,2.68]
[1761194349920,4.01895818,183.7,183.64,2.68]
[1761194350126,2.69,183.75,183.67,2.05378882]
[1761194350330,2.69,183.73,183.68,2.7]
[1761194350631,2.69,183.72,183.68,2.7]
[1761194350833,2.69,183.72,183.65,2.7]
[1761194351031,6.70478468,183.71,183.65,2.7]
[1761194351331,2.69,183.71,183.65,2.7]
[1761194355227,2.69,183.71,183.68,4.75378882]
[1761194356924,2.69,183.71,183.69,2.7]
[1761194357127,4.01458096,183.73,183.69,2.7]
[1761194357329,2.69,183.72,183.69,2.7]
[1761194367834,6.87459288,183.74,183.69,2.7]
[1761194368043,2.86,183.74,183.69,2.7]
[1761194368746,2.77,183.77,183.71,4.85378882]
[1761194368934,4.58780245,183.78,183.72,2.8]
[1761194369141,6.78306831,183.79,183.75,2.8]
[1761194369537,2.77,183.79,183.75,2.8]
[1761194370243,2.77,183.78,183.75,2.8]
[1761194370644,5.07976072,183.84,183.75,2.8]
[1761194370645,6.78127827,183.79,183.75,2.8]
[1761194370846,2.77,183.79,183.75,2.8]
[1761194373747,2.77,183.84,183.75,2.8]
[1761194374443,2.77,183.83,183.75,2.8]
[1761194375948,2.77,183.83,183.76,2.05378882]
[1761194376145,2.77,183.83,183.77,2.8]
[1761194380951,2.77,183.89,183.8,2.8]
[1761194381253,2.77,183.88,183.8,2.8]
[1761194395352,2.77,183.88,183.79,4.85378882]
[1761194395548,2.77,183.88,183.8,2.8]
[1761194396349,2.77,183.88,183.82,4.85378882]
[1761194396852,2.77,183.88,183.84,2.8]
[1761194397264,2.77,183.88,183.83,1.31184946]
[1761194397464,2.77,183.88,183.83,4.11184946]
[1761194397867,2.77,183.88,183.84,2.8]
[1761194398964,2.77,183.88,183.81,4.00184946]
[1761194401958,2.77,183.88,183.82,2.69]
[1761194407160,1.31184946,183.91,183.84,2.69]
[1761194407366,2.78,183.9,183.84,2.69]
[1761194407862,2.78,183.88,183.82,1.31184946]
[1761194408259,2.78,183.88,183.82,4.00184946]
[1761194408665,2.78,183.88,183.83,2.69]
[1761194409559,2.78,183.88,183.84,1.31184946]
[1761194409763,2.78,183.88,183.85,2.69]
[1761194410869,4.09184946,183.91,183.85,2.69]
[1761194411068,2.78,183.91,183.86,1.31184946]
[1761194411263,2.78,183.91,183.87,2.69]
[1761194414569,3.98876572,183.93,183.87,2.69]
[1761194414763,6.76876572,183.93,183.87,2.69]
[1761194414963,3.98876572,183.93,183.88,1.31184946]
[1761194415168,6.76876572,183.96,183.89,2.69]
[1761194415371,3.98876572,183.95,183.89,2.69]
[1761194415578,2.78,183.96,183.89,2.69]
[1761194416068,2.78,183.95,183.89,2.69]
[1761194416264,2.78,183.98,183.93,2.69]
[1761194416465,2.78,183.96,183.93,2.69]
[1761194416872,3.98876572,183.98,183.93,2.69]
[1761194417176,2.78,183.95,183.93,2.69]
[1761194417673,2.78,183.96,183.93,2.69]
[1761194418076,2.78,183.98,183.93,2.69]
[1761194418774,2.78,183.98,183.95,2.69]
[1761194419170,6.76883409,183.98,183.95,2.69]
[1761194419370,2.78,183.98,183.95,2.69]
[1761194419565,3.987227,184.02,183.95,2.69]
[1761194419766,2.78,184.0,183.95,2.69]
[1761194420070,2.78,183.99,183.94,4.00184946]
[1761194420266,2.78,183.99,183.94,2.69]
[1761194422974,2.78,183.99,183.94,1.31184946]
[1761194423275,2.78,184.02,183.94,1.31184946]
[1761194423577,2.78,183.98,183.94,4.00184946]
[1761194423771,2.78,184.01,183.95,2.69]
[1761194425073,2.78,184.01,183.93,4.15184946]
[1761194426181,2.78,184.01,183.94,2.84]
[1761194426379,2.75,184.0,183.94,2.84]
[1761194427878,2.75,184.0,183.88,4.8933]
[1761194427879,2.75,183.98,183.92,4.15184946]
[1761194428472,2.75,183.98,183.93,2.76]
[1761194429168,3.98218114,184.03,183.93,2.76]
[1761194429381,2.86,184.02,183.97,2.76]
[1761194429583,2.86,184.02,183.97,1.31184946]
[1761194429882,2.86,184.02,183.98,2.76]
[1761194431274,2.86,184.09,184.0,2.76]
[1761194431577,2.86,184.07,184.0,2.76]
[1761194432084,2.86,184.07,184.01,4.07184946]
[1761194432278,2.86,184.07,184.02,2.76]
[1761194433771,1.31184946,184.09,184.02,2.76]
[1761194433975,2.86,184.13,184.07,1.31184946]
[1761194434180,2.86,184.13,184.07,4.07184946]
[1761194434381,2.86,184.13,184.08,2.76]
[1761194434583,2.86,184.22,184.12,2.76]
[1761194434778,2.86,184.22,184.16,4.07184946]
[1761194434972,2.86,184.22,184.17,2.76]
[1761194435179,2.86,184.25,184.18,2.76]
[1761194435484,2.86,184.24,184.18,4.07184946]
[1761194435871,2.86,184.24,184.18,2.76]
[1761194436076,2.86,184.22,184.13,2.76]
[1761194436277,1.31184946,184.21,184.13,2.76]
[1761194436484,2.86,184.2,184.13,2.76]
[1761194436983,2.86,184.18,184.12,1.31184946]
[1761194437684,2.86,184.18,184.12,2.76]
[1761194437985,2.86,184.18,184.12,4.07184946]
[1761194439884,2.86,184.18,184.11,1.31184946]
[1761194440281,2.86,184.18,184.08,2.76]
[1761194440988,2.86,184.18,184.1,1.31184946]
[1761194442877,2.86,184.17,184.1,1.31184946]
[1761194443080,2.86,184.17,184.08,4.07184946]
[1761194443276,2.86,184.15,184.08,4.07184946]
[1761194444278,1.31184946,184.14,184.01,2.76]
[1761194444485,2.86,184.13,184.06,1.31184946]
[1761194444784,2.86,184.13,184.07,2.76]
[1761194445087,2.86,184.13,184.08,4.07184946]
[1761194445286,2.86,184.13,184.09,2.76]
[1761194446384,2.86,184.13,184.06,4.07184946]
[1761194446983,2.86,184.11,184.07,2.76]
[1761194447181,1.31184946,184.12,184.07,2.76]
[1761194447182,4.17184946,184.14,184.07,2.76]
[1761194448492,4.17184946,184.14,184.08,1.31184946]
[1761194448790,2.86,184.14,184.08,1.31184946]
[1761194449488,2.86,184.14,184.08,4.07184946]
[1761194449793,2.86,184.14,184.09,2.76]
[1761194450483,2.86,184.13,184.09,2.76]
[1761194451085,2.86,184.13,184.06,2.76]
[1761194452696,1.31184946,184.12,184.06,2.76]
[1761194453993,4.17184946,184.12,184.06,2.76]
[1761194454894,2.86,184.2,184.1,2.76]
[1761194455090,1.31184946,184.18,184.1,2.76]
[1761194455292,1.31184946,184.17,184.1,2.76]
[1761194456093,1.31184946,184.15,184.1,2.76]
[1761194456299,4.17184946,184.15,184.1,2.76]
[1761194456891,2.86,184.15,184.1,2.76]
[1761194458886,2.86,184.15,184.03,4.8895]
[1761194459087,2.86,184.15,184.05,2.92]
[1761194462106,2.86,184.15,184.05,7.809]
[1761194462414,2.86,184.15,184.07,2.92]
[1761194464009,2.73,184.2,184.07,2.92]
[1761194465007,2.73,184.17,184.07,2.92]
[1761194467013,2.73,184.21,184.12,2.044054]
[1761194467214,2.73,184.21,184.13,2.92]
[1761194468815,4.774054,184.2,184.13,2.92]
[1761194469722,2.73,184.2,184.13,2.92]
[1761194470015,2.044054,184.22,184.13,2.92]
[1761194470807,2.73,184.23,184.13,2.92]
[1761194471121,2.73,184.23,184.14,2.044054]
[1761194471327,2.73,184.23,184.15,2.92]
[1761194473513,2.73,184.2,184.09,2.92]
[1761194474111,2.73,184.2,184.1,2.92]
[1761194474320,2.73,184.2,184.11,2.92]
[1761194475716,4.774054,184.25,184.11,2.92]
[1761194475915,2.73,184.24,184.13,2.92]
[1761194476115,2.73,184.24,184.16,2.92]
[1761194477220,2.73,184.28,184.16,2.92]
[1761194477417,4.774054,184.25,184.16,2.92]
[1761194477617,2.73,184.24,184.16,2.92]
[1761194481312,2.73,184.23,184.16,2.92]
[1761194482520,4.774054,184.26,184.16,2.92]
[1761194482924,2.73,184.25,184.16,2.92]
[1761194485026,2.9,184.24,184.16,2.92]
[1761194490732,2.9,184.24,184.17,2.93]
[1761194491124,2.044054,184.27,184.17,2.93]
[1761194491125,4.934054,184.27,184.17,2.93]
[1761194491326,2.89,184.26,184.17,2.93]
[1761194493836,2.89,184.26,184.18,2.93]
[1761194497834,2.89,184.29,184.19,2.044054]
[1761194498033,2.89,184.29,184.2,2.93]
[1761194502639,2.89,184.28,184.2,2.93]
[1761194503833,2.89,184.22,184.16,2.93]